[Event "Kupreichik Memorial Rapid 2019"]
[Site "Minsk"]
[Date "2019.08.17"]
[Round "8.24"]
[White "Shaban, Alena"]
[Black "Shakhadanau, Henadzi"]
[Result "0-1"]
[ECO "A47"]
[WhiteElo "2030"]
[BlackElo "1868"]
[Annotator "NA RC"]
[PlyCount "118"]
[EventDate "2019.08.15"]
[EventType "swiss"]
[EventCountry "BLR"]
[SourceTitle "playchess.com"]
[Source "ChessBase"]
[SourceQuality "1"]
[TimeControl "900+10"]

1. d4 {[%emt 0:00:00]} Nf6 {[%emt 0:00:00]} 2. Nf3 {[%emt 0:00:00]} b6 {[%emt 0:00:00]} 3. e3 {[%emt 0:00:00]} Bb7 {[%emt 0:00:00]} 4. Bd3 {[%emt 0:00:12]} e6 {[%emt 0:00:00]} 5. O-O {[%emt 0:00:11]} Be7 {[%emt 0:00:03]} 6. b3 {[%emt 0:00:02]} O-O {[%emt 0:00:24]} 7. Bb2 {[%emt 0:00:00]} d5 {[%emt 0:00:30]} 8. Nbd2 {[%emt 0:00:17]} Ne4 {[%emt 0:00:38]} 9. c4 {[%emt 0:01:26]} Nd7 {[%emt 0:00:03]} 10. Rc1 {[%emt 0:01:18]} f5 {[%emt 0:00:55]} 11. Ne5 {[%emt 0:00:20]} Nxe5 {[%emt 0:02:39]} 12. dxe5 {[%emt 0:00:02]} Bb4 {[%emt 0:02:07]} 13. Nf3 {[%emt 0:01:41]} Qe7 {[%emt 0:00:54]} 14. cxd5 {[%emt 0:01:49]} exd5 {[%emt 0:00:16]} 15. a3 {[%emt 0:00:53]} Bxa3 {[%emt 0:01:39]} 16. Bxa3 {[%emt 0:00:02]} Qxa3 {[%emt 0:00:01]} 17. Rxc7 {[%emt 0:00:04]} Rf7 {[%emt 0:00:33]} 18. Rxf7 {[%emt 0:00:29]} Kxf7 {[%emt 0:00:02]} 19. Nd4 {[%emt 0:00:04]} g6 {[%emt 0:00:20]} 20. e6+ {[%emt 0:02:21]} Kf6 {[%emt 0:00:46]} 21. Bb5 {[%emt 0:00:35]} Rc8 {[%emt 0:00:29]} 22. Bd7 {[%emt 0:00:19]} Rc5 {[%emt 0:01:57]} 23. Nc2 {[%emt 0:02:02]} Qb2 {[%emt 0:00:14]} 24. Nb4 {[%emt 0:00:56]} Ra5 {[%emt 0:01:19]} 25. Nd3 {[%emt 0:01:52]} Qc3 {[%emt 0:00:31]} 26. b4 {[%emt 0:00:35]} Ra2 {[%emt 0:00:15]} 27. Nf4 {[%emt 0:00:19]} Qe5 {[%emt 0:01:12]} 28. Nd3 {[%emt 0:00:27]} Qc3 {[%emt 0:00:15]} 29. Nf4 {[%emt 0:00:01]} Qd2 {[%emt 0:00:16]} 30. Qxd2 {[%emt 0:00:12]} Rxd2 {[%emt 0:00:01]} 31. f3 {[%emt 0:00:07]} Nd6 {[%emt 0:00:11]} 32. Ra1 {[%emt 0:00:04]} a6 {[%emt 0:00:03]} 33. h4 {[%emt 0:00:09]} Rb2 {[%emt 0:00:08]} 34. Nd3 {[%emt 0:00:10]} Rb3 {[%emt 0:00:04]} 35. Rd1 {[%emt 0:00:04]} Nc4 {[%emt 0:00:13]} 36. Kf2 {[%emt 0:00:07]} Nb2 {[%emt 0:00:08]} 37. Nxb2 {[%emt 0:00:17]} Rxb2+ {[%emt 0:00:01]} 38. Kg3 {[%emt 0:00:01]} Rxb4 {[%emt 0:00:01]} 39. Rc1 {[%emt 0:00:07]} Rc4 {[%emt 0:00:01]} 40. Rb1 {[%emt 0:00:02]} b5 {[%emt 0:00:01]} 41. Rb3 {[%emt 0:00:30]} Ke7 {[%emt 0:00:01]} 42. Kh3 {[%emt 0:00:06]} b4 {[%emt 0:00:03]} 43. g4 {[%emt 0:00:08]} fxg4+ {[%emt 0:00:05]} 44. fxg4 {[%emt 0:00:01]} a5 45. h5 {[%emt 0:00:04]} gxh5 {[%emt 0:00:05]} 46. gxh5 {[%emt 0:00:02]} Rc3 {[%emt 0:00:01]} 47. Rb1 {[%emt 0:00:09]} Rxe3+ {[%emt 0:00:02]} 48. Kg4 {[%emt 0:00:01]} Re5 {[%emt 0:00:17]} 49. Rf1 {[%emt 0:00:02]} h6 {[%emt 0:00:24]} 50. Rf7+ {[%emt 0:00:01]} Kd6 {[%emt 0:00:01]} 51. Kf4 {[%emt 0:00:10]} d4 {[%emt 0:00:31]} 52. Rf6 {[%emt 0:00:54]} Rxh5 {[%emt 0:00:11]} 53. Rf7 {[%emt 0:00:13]} Bd5 {[%emt 0:00:46]} 54. Rf6 {[%emt 0:00:27]} Rh1 {[%emt 0:00:07]} 55. Rg6 {[%emt 0:00:34]} Rf1+ {[%emt 0:00:12]} 56. Kg4 {[%emt 0:00:16]} Rg1+ {[%emt 0:00:03]} 57. Kf5 {[%emt 0:00:05]} Be4+ {[%emt 0:00:15]} 58. Kxe4 {[%emt 0:00:07]} Rxg6 {[%emt 0:00:01]} 59. Kxd4 {[%emt 0:00:01]} Rxe6 {[%emt 0:00:06]} 0-1

[Event "Kupreichik Memorial Rapid 2019"]
[Site "Minsk"]
[Date "2019.08.17"]
[Round "8.25"]
[White "Khrapko, Marharyta"]
[Black "Kolosovskaya, Olga"]
[Result "1-0"]
[ECO "B33"]
[WhiteElo "2073"]
[BlackElo "1719"]
[Annotator "NA"]
[PlyCount "63"]
[EventDate "2019.08.15"]
[EventType "swiss"]
[EventCountry "BLR"]
[SourceTitle "playchess.com"]
[Source "ChessBase"]
[SourceQuality "1"]
[TimeControl "900+10"]

1. e4 {[%emt 0:00:00]} c5 {[%emt 0:00:00]} 2. Nf3 {[%emt 0:00:00]} e6 {[%emt 0:00:00]} 3. d4 {[%emt 0:00:00]} cxd4 {[%emt 0:00:00]} 4. Nxd4 {[%emt 0:00:00]} Nf6 {[%emt 0:00:00]} 5. Nc3 {[%emt 0:00:08]} Nc6 {[%emt 0:00:00]} 6. Ndb5 {[%emt 0:00:07]} d6 {[%emt 0:00:00]} 7. Bf4 {[%emt 0:00:04]} e5 {[%emt 0:00:01]} 8. Bg5 {[%emt 0:00:02]} a6 {[%emt 0:00:03]} 9. Na3 {[%emt 0:00:02]} b5 {[%emt 0:00:01]} 10. Bxf6 {[%emt 0:00:06]} gxf6 {[%emt 0:00:06]} 11. Nd5 {[%emt 0:00:02]} f5 {[%emt 0:00:43]} 12. c3 {[%emt 0:00:01]} fxe4 {[%emt 0:00:49]} 13. Bxb5 {[%emt 0:00:18]} axb5 {[%emt 0:00:11]} 14. Nxb5 {[%emt 0:00:02]} Qg5 {[%emt 0:08:14]} 15. Nbc7+ {[%emt 0:01:07]} Kd8 {[%emt 0:00:07]} 16. Nxa8 {[%emt 0:00:02]} Qxg2 {[%emt 0:00:07]} 17. Rf1 {[%emt 0:00:10]} Bh3 {[%emt 0:00:19]} 18. Ne3 {[%emt 0:01:13]} Qf3 {[%emt 0:00:09]} 19. Rg1 {[%emt 0:01:45]} Qxd1+ {[%emt 0:01:17]} 20. Rxd1 {[%emt 0:00:08]} Kc8 {[%emt 0:00:21]} 21. Nb6+ {[%emt 0:00:10]} Kb7 {[%emt 0:00:01]} 22. Nbc4 {[%emt 0:00:23]} Kc7 {[%emt 0:00:26]} 23. Nd5+ {[%emt 0:00:54]} Kd7 {[%emt 0:00:46]} 24. b4 {[%emt 0:00:41]} Ke6 {[%emt 0:00:38]} 25. Rg3 {[%emt 0:00:23]} Bf5 {[%emt 0:00:06]} 26. b5 {[%emt 0:00:50]} Na7 {[%emt 0:00:07]} 27. a4 {[%emt 0:00:42]} e3 {[%emt 0:00:37]} 28. Ncxe3 {[%emt 0:02:11]} Be4 {[%emt 0:00:20]} 29. f3 {[%emt 0:00:42]} Bg6 {[%emt 0:01:01]} 30. Nb4 {[%emt 0:01:37]} Bh6 {[%emt 0:00:11]} 31. Nc4 {[%emt 0:00:31]} Bf8 {[%emt 0:01:35]} 32. b6 {[%emt 0:00:14] Kd5} 1-0

[Event "Kupreichik Memorial Rapid 2019"]
[Site "Minsk"]
[Date "2019.08.17"]
[Round "8.26"]
[White "Stanishevskij, Aleksandr"]
[Black "Uzlavataya, Anhelina"]
[Result "1-0"]
[ECO "B40"]
[WhiteElo "1830"]
[BlackElo "2051"]
[Annotator "NA"]
[PlyCount "95"]
[EventDate "2019.08.15"]
[EventType "swiss"]
[EventCountry "BLR"]
[SourceTitle "playchess.com"]
[Source "ChessBase"]
[SourceQuality "1"]
[TimeControl "900+10"]

1. e4 c5 2. Nf3 {[%emt 0:00:20]} e6 {[%emt 0:00:05]} 3. d3 {[%emt 0:00:02]} d5 {[%emt 0:00:14]} 4. Nbd2 {[%emt 0:00:06]} Be7 {[%emt 0:00:28]} 5. g3 {[%emt 0:00:17]} Nf6 {[%emt 0:00:06]} 6. Bg2 {[%emt 0:00:09]} O-O {[%emt 0:00:04]} 7. e5 {[%emt 0:00:10]} Nfd7 {[%emt 0:00:08]} 8. O-O {[%emt 0:00:02]} Nc6 {[%emt 0:00:02]} 9. Re1 {[%emt 0:00:04]} Qc7 {[%emt 0:00:11]} 10. Qe2 {[%emt 0:00:05]} b5 {[%emt 0:00:41]} 11. Nf1 {[%emt 0:00:23]} a5 {[%emt 0:01:22]} 12. h4 {[%emt 0:00:45]} Ba6 {[%emt 0:00:14]} 13. N1h2 {[%emt 0:00:25]} Rac8 {[%emt 0:00:21]} 14. c3 {[%emt 0:01:01]} Rfd8 {[%emt 0:02:48]} 15. Ng4 {[%emt 0:01:03]} d4 {[%emt 0:00:22]} 16. Bg5 {[%emt 0:01:12]} dxc3 {[%emt 0:01:14]} 17. bxc3 {[%emt 0:00:28]} b4 {[%emt 0:00:38]} 18. Bxe7 {[%emt 0:00:11]} Nxe7 {[%emt 0:00:05]} 19. c4 {[%emt 0:00:32]} Bb7 {[%emt 0:00:54]} 20. h5 {[%emt 0:01:47]} h6 {[%emt 0:02:32]} 21. Qd2 Nf5 {[%emt 0:00:17]} 22. Qf4 {[%emt 0:04:25]} Nb8 {[%emt 0:00:55]} 23. Rad1 {[%emt 0:00:13]} Nc6 {[%emt 0:00:01]} 24. Ne3 {[%emt 0:00:26]} Ncd4 {[%emt 0:01:08]} 25. Nxf5 {[%emt 0:01:59]} Nxf5 {[%emt 0:00:21]} 26. g4 {[%emt 0:00:12]} Nd4 {[%emt 0:01:05]} 27. Nh4 {[%emt 0:01:26]} Bxg2 {[%emt 0:00:02]} 28. Kxg2 {[%emt 0:00:24]} Qe7 {[%emt 0:00:02]} 29. Kg3 {[%emt 0:00:18]} Qg5 {[%emt 0:00:12]} 30. Qe4 {[%emt 0:00:14]} f5 {[%emt 0:01:43]} 31. exf6 {[%emt 0:00:21]} gxf6 {[%emt 0:00:22]} 32. Ng6 {[%emt 0:00:14]} f5 {[%emt 0:00:34]} 33. Qf4 {[%emt 0:00:41]} Qxf4+ {[%emt 0:00:28]} 34. Kxf4 {[%emt 0:00:02]} fxg4 {[%emt 0:00:24]} 35. Ne7+ {[%emt 0:00:04]} Kf7 {[%emt 0:00:04]} 36. Nxc8 {[%emt 0:00:01]} Rxc8 {[%emt 0:00:01]} 37. Kxg4 {[%emt 0:00:15]} Kf6 {[%emt 0:00:12]} 38. Re4 {[%emt 0:00:14]} a4 {[%emt 0:00:15]} 39. Rb1 {[%emt 0:00:34]} Rg8+ {[%emt 0:00:03]} 40. Kh3 {[%emt 0:00:08]} Rg5 {[%emt 0:00:05]} 41. Rh4 {[%emt 0:00:12]} Rf5 {[%emt 0:00:13]} 42. Kg3 {[%emt 0:00:12]} Rf3+ {[%emt 0:00:03]} 43. Kg2 {[%emt 0:00:02]} Rxd3 {[%emt 0:00:03]} 44. Rf4+ {[%emt 0:00:06]} Kg5 {[%emt 0:00:07]} 45. Rf8 {[%emt 0:00:04]} Rc3 {[%emt 0:00:09]} 46. Rc8 {[%emt 0:00:02]} Rxc4 {[%emt 0:00:04]} 47. Rg8+ {[%emt 0:00:11]} Kxh5 {[%emt 0:00:02]} 48. Rh1# {[%emt 0:00:01]} 1-0

[Event "Kupreichik Memorial Rapid 2019"]
[Site "Minsk"]
[Date "2019.08.17"]
[Round "8.27"]
[White "Zhukovskij, Viktor"]
[Black "Ostrovskiy, Viktor"]
[Result "1-0"]
[ECO "B84"]
[WhiteElo "2028"]
[BlackElo "1453"]
[Annotator "NA RC"]
[PlyCount "86"]
[EventDate "2019.08.15"]
[EventType "swiss"]
[EventCountry "BLR"]
[SourceTitle "playchess.com"]
[Source "ChessBase"]
[SourceQuality "1"]
[TimeControl "900+10"]

1. e4 {[%emt 0:00:00]} c5 {[%emt 0:00:00]} 2. Nf3 {[%emt 0:00:00]} d6 {[%emt 0:00:00]} 3. d4 {[%emt 0:00:00]} cxd4 {[%emt 0:00:00]} 4. Nxd4 {[%emt 0:00:00]} Nf6 {[%emt 0:00:00]} 5. Nc3 {[%emt 0:00:00]} a6 {[%emt 0:00:00]} 6. Be2 {[%emt 0:00:00]} e6 {[%emt 0:00:01]} 7. a4 {[%emt 0:00:01]} Be7 {[%emt 0:00:04]} 8. Be3 {[%emt 0:00:01]} Nc6 {[%emt 0:00:10]} 9. O-O {[%emt 0:00:03]} Bd7 {[%emt 0:00:05]} 10. Nb3 {[%emt 0:00:05]} O-O {[%emt 0:00:55]} 11. f4 {[%emt 0:00:03]} Qc7 {[%emt 0:00:21]} 12. g4 {[%emt 0:00:40]} e5 {[%emt 0:01:59]} 13. g5 {[%emt 0:00:39]} Ne8 {[%emt 0:00:36]} 14. f5 {[%emt 0:00:07]} Qd8 {[%emt 0:02:37]} 15. Qd2 {[%emt 0:00:16]} Nd4 {[%emt 0:00:08]} 16. Bc4 {[%emt 0:04:24]} b5 {[%emt 0:02:33]} 17. Bd5 {[%emt 0:05:13]} Rb8 {[%emt 0:00:04]} 18. g6 {[%emt 0:01:56]} Nf6 {[%emt 0:01:08]} 19. Bxf7+ {[%emt 0:00:15]} Rxf7 {[%emt 0:01:09]} 20. gxf7+ {[%emt 0:00:03]} Kxf7 {[%emt 0:00:02]} 21. Nxd4 {[%emt 0:00:02]} exd4 {[%emt 0:00:07]} 22. Qxd4 {[%emt 0:00:07]} Bc6 {[%emt 0:02:37]} 23. axb5 {[%emt 0:00:09]} axb5 {[%emt 0:00:01]} 24. Ra7 {[%emt 0:01:21]} Ng4 {[%emt 0:00:44]} 25. Bg5 {[%emt 0:01:28]} Nf6 {[%emt 0:00:25]} 26. Nd5 {[%emt 0:00:42]} Bxd5 {[%emt 0:00:16]} 27. Bxf6 {[%emt 0:00:07]} gxf6 {[%emt 0:00:06]} 28. Qxd5+ {[%emt 0:00:02]} Kf8 {[%emt 0:00:02]} 29. Rf2 {[%emt 0:00:39]} Qb6 {[%emt 0:00:04]} 30. Ra8 {[%emt 0:00:10]} Rxa8 {[%emt 0:01:15]} 31. Qxa8+ {[%emt 0:00:02]} Kf7 32. Qd5+ {[%emt 0:00:03]} Kf8 {[%emt 0:00:03]} 33. c3 {[%emt 0:00:36]} Qe3 {[%emt 0:00:57]} 34. Qd4 {[%emt 0:00:05]} Qc1+ {[%emt 0:00:39]} 35. Kg2 {[%emt 0:00:01]} Qg5+ {[%emt 0:00:01]} 36. Kf1 {[%emt 0:00:01]} Qc1+ {[%emt 0:00:27]} 37. Kg2 {[%emt 0:00:06]} Qg5+ {[%emt 0:00:03]} 38. Kf3 {[%emt 0:00:01]} Qh5+ {[%emt 0:00:53]} 39. Ke3 {[%emt 0:00:02]} Qg5+ {[%emt 0:00:34]} 40. Ke2 {[%emt 0:00:18]} Qg4+ {[%emt 0:00:03]} 41. Kd2 {[%emt 0:00:05]} Qg5+ {[%emt 0:00:06]} 42. Kc2 {[%emt 0:00:01]} h5 43. Qd5 Ke8 1-0

[Event "Kupreichik Memorial Rapid 2019"]
[Site "Minsk"]
[Date "2019.08.17"]
[Round "8.28"]
[White "Svjatocho, Andrej"]
[Black "Nikolaev, Dmitry"]
[Result "1-0"]
[ECO "C02"]
[WhiteElo "1995"]
[BlackElo "1677"]
[Annotator "NA RC"]
[PlyCount "77"]
[EventDate "2019.08.15"]
[EventType "swiss"]
[EventCountry "BLR"]
[SourceTitle "playchess.com"]
[Source "ChessBase"]
[SourceQuality "1"]
[TimeControl "900+10"]

1. e4 {[%emt 0:00:00]} e6 {[%emt 0:00:00]} 2. d4 {[%emt 0:00:00]} d5 {[%emt 0:00:00]} 3. e5 {[%emt 0:00:00]} c5 {[%emt 0:00:00]} 4. c3 {[%emt 0:00:00]} Nc6 {[%emt 0:00:00]} 5. Nf3 {[%emt 0:00:02]} Qb6 {[%emt 0:00:00]} 6. a3 {[%emt 0:00:02]} Nge7 {[%emt 0:01:20]} 7. dxc5 {[%emt 0:03:41]} Qxc5 {[%emt 0:00:02]} 8. b4 {[%emt 0:00:10]} Qb6 {[%emt 0:00:02]} 9. c4 {[%emt 0:00:12]} Ng6 {[%emt 0:02:12]} 10. Bb2 {[%emt 0:00:46]} Bc5 {[%emt 0:03:00]} 11. Qd2 {[%emt 0:00:51]} Be7 {[%emt 0:01:13]} 12. cxd5 {[%emt 0:01:11]} exd5 {[%emt 0:00:02]} 13. Nc3 {[%emt 0:01:00]} Be6 {[%emt 0:01:28]} 14. Na4 {[%emt 0:04:44]} Qd8 {[%emt 0:00:50]} 15. Bb5 {[%emt 0:00:23]} O-O {[%emt 0:00:42]} 16. Bxc6 {[%emt 0:00:32]} bxc6 {[%emt 0:00:01]} 17. O-O {[%emt 0:00:16]} a5 {[%emt 0:00:28]} 18. Bd4 {[%emt 0:00:30]} axb4 {[%emt 0:00:58]} 19. axb4 {[%emt 0:00:02]} Qc7 {[%emt 0:01:28]} 20. Nc5 {[%emt 0:02:14]} Bxc5 {[%emt 0:03:05]} 21. Bxc5 {[%emt 0:00:04]} Rfd8 {[%emt 0:00:22]} 22. Bd6 {[%emt 0:00:07]} Qb7 {[%emt 0:00:29]} 23. Nd4 {[%emt 0:00:24]} Rxa1 {[%emt 0:00:38]} 24. Rxa1 {[%emt 0:00:02]} Ra8 {[%emt 0:00:01]} 25. Rc1 {[%emt 0:00:27]} Bd7 {[%emt 0:00:01]} 26. f4 {[%emt 0:00:06]} Re8 {[%emt 0:00:27]} 27. Re1 {[%emt 0:00:13]} Qa7 {[%emt 0:00:13]} 28. Bc5 {[%emt 0:00:21]} Qb8 {[%emt 0:00:14]} 29. h3 {[%emt 0:00:11]} h5 {[%emt 0:00:03]} 30. Bd6 {[%emt 0:00:23]} Qa7 {[%emt 0:00:01]} 31. Kh2 {[%emt 0:00:02]} h4 {[%emt 0:00:07]} 32. f5 {[%emt 0:00:17]} Nf8 {[%emt 0:00:33]} 33. Qf4 {[%emt 0:00:24]} Qa3 {[%emt 0:00:14]} 34. Qxh4 {[%emt 0:00:13]} Qc3 {[%emt 0:00:02]} 35. Rf1 {[%emt 0:00:27]} Qc4 {[%emt 0:00:08]} 36. Rf4 {[%emt 0:00:01]} g6 {[%emt 0:00:20]} 37. Bxf8 {[%emt 0:00:22]} Rxf8 {[%emt 0:00:02]} 38. f6 {[%emt 0:00:02]} Qxb4 {[%emt 0:00:20]} 39. Qh6 {[%emt 0:00:05]} 1-0

[Event "Kupreichik Memorial Rapid 2019"]
[Site "Minsk"]
[Date "2019.08.17"]
[Round "8.29"]
[White "Stsepkina, Yauheniya"]
[Black "Tyurin, Artem"]
[Result "1/2-1/2"]
[ECO "E04"]
[WhiteElo "1537"]
[BlackElo "2057"]
[Annotator "NA RC"]
[PlyCount "134"]
[EventDate "2019.08.15"]
[EventType "swiss"]
[EventCountry "BLR"]
[SourceTitle "playchess.com"]
[Source "ChessBase"]
[SourceQuality "1"]
[TimeControl "900+10"]

1. d4 {[%emt 0:00:00]} Nf6 {[%emt 0:00:00]} 2. c4 {[%emt 0:00:00]} e6 {[%emt 0:00:00]} 3. Nf3 {[%emt 0:00:00]} d5 {[%emt 0:00:01]} 4. g3 {[%emt 0:00:00]} dxc4 {[%emt 0:00:04]} 5. Bg2 {[%emt 0:00:55]} c5 {[%emt 0:00:02]} 6. O-O {[%emt 0:02:04]} Nc6 {[%emt 0:00:02]} 7. dxc5 {[%emt 0:00:27]} Qxd1 {[%emt 0:00:04]} 8. Rxd1 {[%emt 0:00:01]} Bxc5 {[%emt 0:00:02]} 9. Nc3 {[%emt 0:01:08]} O-O {[%emt 0:00:08]} 10. Nd2 {[%emt 0:03:39]} Na5 {[%emt 0:02:58]} 11. Nde4 {[%emt 0:00:18]} Be7 {[%emt 0:02:03]} 12. Nxf6+ {[%emt 0:01:53]} gxf6 {[%emt 0:01:00]} 13. Bh6 {[%emt 0:02:58]} Rd8 {[%emt 0:00:16]} 14. Rxd8+ {[%emt 0:00:04]} Bxd8 {[%emt 0:00:03]} 15. Rd1 {[%emt 0:00:02]} Be7 {[%emt 0:00:10]} 16. Nb5 {[%emt 0:00:16]} Nc6 {[%emt 0:05:28]} 17. Nd6 {[%emt 0:00:57]} Bd7 {[%emt 0:00:49]} 18. Nxb7 {[%emt 0:02:37]} Be8 {[%emt 0:00:02]} 19. Na5 {[%emt 0:00:05]} Rd8 {[%emt 0:01:23]} 20. Rxd8 {[%emt 0:00:30]} Nxd8 {[%emt 0:00:07]} 21. e3 {[%emt 0:00:20]} e5 {[%emt 0:00:43]} 22. Nxc4 {[%emt 0:00:07]} Ne6 {[%emt 0:00:07]} 23. e4 {[%emt 0:00:12]} Bb5 {[%emt 0:00:11]} 24. Ne3 {[%emt 0:00:08]} Nd4 {[%emt 0:00:14]} 25. Bf1 {[%emt 0:00:09]} Bc6 {[%emt 0:00:58]} 26. Nd5 {[%emt 0:00:12]} Bd8 {[%emt 0:00:04]} 27. Be3 {[%emt 0:00:06]} Nf3+ {[%emt 0:00:14]} 28. Kg2 {[%emt 0:00:02]} Ne1+ {[%emt 0:00:08]} 29. Kg1 {[%emt 0:00:12]} f5 {[%emt 0:00:03]} 30. Nc3 {[%emt 0:00:23]} fxe4 {[%emt 0:00:29]} 31. Bh3 {[%emt 0:00:09]} Nf3+ {[%emt 0:00:05]} 32. Kg2 {[%emt 0:00:10]} Ba5 {[%emt 0:00:07]} 33. Bg4 {[%emt 0:00:10]} Ne1+ {[%emt 0:00:09]} 34. Kf1 {[%emt 0:00:06]} Nd3 {[%emt 0:00:01]} 35. Bf5 {[%emt 0:00:13]} Bxc3 {[%emt 0:00:22]} 36. bxc3 {[%emt 0:00:01]} a5 {[%emt 0:00:25]} 37. Ke2 {[%emt 0:00:08]} Nb2 {[%emt 0:00:06]} 38. Bc1 {[%emt 0:00:23]} Nc4 {[%emt 0:00:02]} 39. Bg5 {[%emt 0:00:11]} Nd6 {[%emt 0:00:05]} 40. Bh3 {[%emt 0:00:04]} Bb5+ {[%emt 0:00:01]} 41. Ke3 {[%emt 0:00:10]} f5 {[%emt 0:00:03]} 42. Kd2 {[%emt 0:00:10]} Kf7 {[%emt 0:00:05]} 43. Bd8 {[%emt 0:00:06]} Ke6 {[%emt 0:00:04]} 44. Kc2 {[%emt 0:00:19]} a4 {[%emt 0:00:18]} 45. Bc7 {[%emt 0:00:11]} Nc4 {[%emt 0:00:08]} 46. Bd8 {[%emt 0:00:04]} e3 {[%emt 0:00:25]} 47. fxe3 {[%emt 0:00:10]} Nxe3+ {[%emt 0:00:03]} 48. Kd2 {[%emt 0:00:03]} Nc4+ {[%emt 0:00:06]} 49. Ke1 {[%emt 0:00:15]} Nb2 {[%emt 0:00:39]} 50. Bg5 {[%emt 0:00:17]} Bc4 {[%emt 0:00:20]} 51. a3 {[%emt 0:00:10]} e4 {[%emt 0:00:20]} 52. Kd2 {[%emt 0:00:12]} Bb5 {[%emt 0:00:12]} 53. Ke1 {[%emt 0:00:07]} Nc4 {[%emt 0:00:22]} 54. Bc1 {[%emt 0:00:04]} Ne5 {[%emt 0:00:01]} 55. Bg2 {[%emt 0:00:17]} Kd5 {[%emt 0:00:05]} 56. Bf4 {[%emt 0:00:12]} Nd3+ {[%emt 0:00:07]} 57. Kd2 {[%emt 0:00:00]} Kc4 {[%emt 0:00:09]} 58. Bf1 {[%emt 0:00:07]} Kb3 {[%emt 0:00:17]} 59. Bxd3 {[%emt 0:00:11]} exd3 {[%emt 0:00:02]} 60. Bd6 {[%emt 0:00:02]} Kc4 {[%emt 0:00:02]} 61. Bf4 {[%emt 0:00:25]} Kd5 {[%emt 0:00:10]} 62. Ke3 {[%emt 0:00:08]} h5 {[%emt 0:00:12]} 63. Bh6 {[%emt 0:00:08]} Kc4 {[%emt 0:00:29]} 64. Kd2 {[%emt 0:00:02]} Kd5 {[%emt 0:00:11]} 65. Ke3 {[%emt 0:00:02]} Ke6 {[%emt 0:00:04]} 66. Kd4 {[%emt 0:00:24]} Bc6 {[%emt 0:00:36]} 67. Kxd3 {[%emt 0:00:21]} Ke5 {Ke4+} 1/2-1/2

[Event "Kupreichik Memorial Rapid 2019"]
[Site "Minsk"]
[Date "2019.08.17"]
[Round "8.30"]
[White "Ustiugov, Boris"]
[Black "Masjuk, Vladimir"]
[Result "0-1"]
[ECO "A41"]
[WhiteElo "1567"]
[BlackElo "1900"]
[Annotator "NA"]
[PlyCount "92"]
[EventDate "2019.08.15"]
[EventType "swiss"]
[EventCountry "BLR"]
[SourceTitle "playchess.com"]
[Source "ChessBase"]
[SourceQuality "1"]
[TimeControl "900+10"]

1. d4 {[%emt 0:00:00]} d6 {[%emt 0:00:00]} 2. Nf3 {[%emt 0:00:02]} Nf6 {[%emt 0:00:00]} 3. c4 {[%emt 0:00:14]} Bf5 {[%emt 0:00:00]} 4. Nc3 {[%emt 0:00:09]} Nbd7 {[%emt 0:00:00]} 5. Bg5 {[%emt 0:00:32]} h6 {[%emt 0:00:03]} 6. Bh4 {[%emt 0:00:02]} e5 {[%emt 0:00:08]} 7. e4 {[%emt 0:00:55]} Bg4 {[%emt 0:00:09]} 8. Bxf6 {[%emt 0:01:12]} gxf6 {[%emt 0:00:50]} 9. Be2 {[%emt 0:00:28]} Be7 {[%emt 0:00:25]} 10. h3 {[%emt 0:00:20]} Bh5 {[%emt 0:00:22]} 11. g4 {[%emt 0:00:15]} Bg6 {[%emt 0:00:02]} 12. Qd2 {[%emt 0:00:29]} c6 {[%emt 0:00:19]} 13. O-O-O {[%emt 0:00:34]} Qa5 {[%emt 0:00:25]} 14. Nh4 {[%emt 0:00:49]} O-O-O {[%emt 0:00:26]} 15. Nf5 {[%emt 0:00:11]} Bf8 {[%emt 0:00:58]} 16. Qc2 {[%emt 0:02:52]} Bxf5 {[%emt 0:01:11]} 17. gxf5 {[%emt 0:00:19]} Nb6 {[%emt 0:00:30]} 18. Kb1 {[%emt 0:01:05]} h5 {[%emt 0:00:13]} 19. Rhg1 {[%emt 0:00:39]} Kb8 {[%emt 0:00:11]} 20. Rg3 {[%emt 0:01:14]} h4 {[%emt 0:00:12]} 21. Rg2 {[%emt 0:00:16]} Bh6 {[%emt 0:00:38]} 22. b3 {[%emt 0:01:21]} Bf4 {[%emt 0:00:22]} 23. d5 {[%emt 0:00:47]} Bg5 {[%emt 0:00:56]} 24. Qb2 {[%emt 0:00:18]} cxd5 {[%emt 0:01:04]} 25. exd5 {[%emt 0:00:36]} Qc5 {[%emt 0:00:52]} 26. Ne4 {[%emt 0:00:19]} Qc8 {[%emt 0:00:06]} 27. Nxg5 {[%emt 0:00:49]} fxg5 {[%emt 0:00:15]} 28. Qc2 {[%emt 0:00:32]} f6 {[%emt 0:00:03]} 29. Qe4 {[%emt 0:00:12]} Nd7 {[%emt 0:00:09]} 30. b4 {[%emt 0:00:15]} Qc7 {[%emt 0:00:40]} 31. Rc1 {[%emt 0:00:09]} Qb6 {[%emt 0:00:07]} 32. a3 {[%emt 0:00:31]} Rc8 {[%emt 0:00:15]} 33. Ka2 {[%emt 0:00:14]} a6 {[%emt 0:00:46]} 34. Qe3 {[%emt 0:00:18]} Qd8 {[%emt 0:00:14]} 35. Rc3 {[%emt 0:00:11]} Rc7 {[%emt 0:00:10]} 36. Rg1 {[%emt 0:00:02]} Qe7 {[%emt 0:00:08]} 37. Rgc1 {[%emt 0:00:10]} Rhc8 {[%emt 0:00:01]} 38. Kb2 {[%emt 0:00:24]} e4 {[%emt 0:00:02]} 39. Bd3 {[%emt 0:01:00]} Ne5 {[%emt 0:02:49]} 40. Be2 {[%emt 0:00:25]} Re8 {[%emt 0:00:35]} 41. c5 {[%emt 0:00:03]} dxc5 {[%emt 0:00:28]} 42. bxc5 {[%emt 0:00:01]} Qd8 {[%emt 0:00:09]} 43. Rb3 {[%emt 0:00:04]} Qxd5 {[%emt 0:00:07]} 44. Bxa6 {[%emt 0:00:10]} Ka8 {[%emt 0:00:19]} 45. a4 {[%emt 0:00:05]} bxa6 {[%emt 0:00:06]} 46. Qc3 {[%emt 0:00:18]} Nd3+ 0-1

[Event "Kupreichik Memorial Rapid 2019"]
[Site "Minsk"]
[Date "2019.08.17"]
[Round "8.31"]
[White "Sadovnikov, Konstantin"]
[Black "Kozlov, Valentin"]
[Result "1-0"]
[ECO "B23"]
[WhiteElo "1798"]
[BlackElo "1871"]
[Annotator "NA RC"]
[PlyCount "49"]
[EventDate "2019.08.15"]
[EventType "swiss"]
[EventCountry "BLR"]
[SourceTitle "playchess.com"]
[Source "ChessBase"]
[SourceQuality "1"]
[TimeControl "900+10"]

1. e4 {[%emt 0:00:00]} c5 {[%emt 0:00:00]} 2. Nc3 {[%emt 0:00:00]} Nc6 {[%emt 0:00:00]} 3. f4 {[%emt 0:00:00]} e6 {[%emt 0:00:02]} 4. Nf3 {[%emt 0:00:00]} Be7 {[%emt 0:00:03]} 5. d3 {[%emt 0:00:00]} Nf6 {[%emt 0:00:17]} 6. g3 {[%emt 0:00:00]} O-O {[%emt 0:00:02]} 7. Bg2 {[%emt 0:00:00]} a6 {[%emt 0:00:12]} 8. O-O {[%emt 0:00:02]} b5 {[%emt 0:00:26]} 9. h3 {[%emt 0:00:01]} d6 {[%emt 0:00:30]} 10. g4 {[%emt 0:00:03]} Nd7 {[%emt 0:01:00]} 11. f5 {[%emt 0:00:21]} exf5 {[%emt 0:00:12]} 12. exf5 {[%emt 0:00:11]} Bb7 {[%emt 0:00:23]} 13. Nd5 {[%emt 0:00:13]} Nf6 {[%emt 0:01:40]} 14. Nf4 {[%emt 0:01:24]} Qc7 {[%emt 0:00:56]} 15. g5 {[%emt 0:00:23]} Nd7 {[%emt 0:00:16]} 16. Nd5 {[%emt 0:03:40]} Qd8 {[%emt 0:00:01]} 17. Qe1 {[%emt 0:00:01]} Re8 {[%emt 0:00:28]} 18. Qg3 {[%emt 0:00:46]} Nd4 {[%emt 0:00:59]} 19. Nxd4 {[%emt 0:00:10]} Bxd5 {[%emt 0:00:10]} 20. Bxd5 {[%emt 0:00:11]} cxd4 {[%emt 0:00:23]} 21. g6 {[%emt 0:00:01]} Ne5 {[%emt 0:00:42]} 22. gxf7+ {[%emt 0:00:47]} Nxf7 {[%emt 0:00:05]} 23. Bh6 {[%emt 0:00:04]} Bf6 {[%emt 0:00:21]} 24. Bxg7 {[%emt 0:00:05]} Bxg7 {[%emt 0:00:09]} 25. f6 {[%emt 0:00:01]} 1-0